fUST/lending_fUST_20240711
["ID","MTS","AMOUNT","RATE_DAILY","PERIOD"]
[331726361,1720702241253,-835.71,0.00031232,7]
[331726362,1720702241263,-835.71,0.00031506,7]
[331726363,1720702241274,-835.71,0.0003178,7]
[331726364,1720702241285,-1000.0,0.00032,32]
[331726365,1720702241296,-16225.89637713,0.00032052,5]
[331726366,1720702241306,-229929.31974548,0.00032052,2]
[331726367,1720702241322,-58419.46043542,0.00032052,2]
[331726368,1720702241333,-151.0,0.00032052,7]
[331726369,1720702241343,-277.07988,0.00032052,7]
[331726370,1720702241354,-151.0,0.00032052,7]
[331726371,1720702241364,-151.0,0.00032052,7]
[331726372,1720702241374,-151.0,0.00032052,7]
[331726373,1720702241384,-151.0,0.00032052,7]
[331726374,1720702241396,-151.0,0.00032052,7]
[331726375,1720702241405,-1866.381678,0.00032052,7]
[331726376,1720702241414,-151.0,0.00032052,7]
[331726377,1720702241423,-151.0,0.00032052,7]
[331726378,1720702241433,-151.0,0.00032052,2]
[331726379,1720702241443,-151.0,0.00032052,2]
[331726380,1720702241454,-151.0,0.00032052,7]
[331726381,1720702241465,-835.71,0.00032054,7]
[331726382,1720702241475,-835.71,0.00032328,7]
[331726383,1720702241486,-1924.57827969,0.00032365,2]
[331726384,1720702241497,-150.0,0.00032448,2]
[331726385,1720702241507,-503.0,0.00032448,2]
[331726386,1720702241518,-1406.0,0.00032448,2]
[331726387,1720702241527,-835.71,0.00032602,7]
[331726388,1720702241539,-150.71364408,0.00032703,2]
[331726389,1720702241548,-250.01584989,0.00032703,2]
[331726390,1720702241558,-835.71,0.00032876,7]
[331726391,1720702241568,-24428.24536662,0.00033,30]
[331726392,1720702241579,-3972.0,0.00033,2]
[331726393,1720702241590,-154.69833824,0.00033,4]
[331726394,1720702241601,-575.64280493,0.00033,4]
[331726395,1720702241611,-243.11559292,0.00033,2]
[331726396,1720702241622,-7000.00288885,0.00033,10]
[331726397,1720702241632,-1026.63423376,0.00033,4]
[331726398,1720702241644,-284.63680701,0.00033,3]
[331726399,1720702241654,-261.65035706,0.00033,4]
[331726400,1720702241664,-254.34931479,0.00033,4]
[331726401,1720702241675,-8306.79676874,0.00033,30]
[331726402,1720702241689,-22474.692,0.00033,30]
[331726619,1720702246535,-2964.39,0.0003299,3]
[331726622,1720702246545,-20691.60999997,0.00033,30]
[331726722,1720703155239,1230.27459568,0.00018899,2]
[331726726,1720703193143,-392.77360034,0.00021008,3]
[331726727,1720703193166,-644.085952,0.00021096,2]
[331726728,1720703193188,-426.03999597,0.00021108,2]
[331726748,1720703382981,984.62412913,0.00019008,2]
[331726749,1720703387259,285.10127519,0.00018899,2]
[331726750,1720703387286,825.23944593,0.00018899,2]
[331726752,1720703400980,261.90559786,9.9e-05,2]
[331726911,1720703438950,-764.10919398,0.00021108,2]
[331726913,1720703438959,-378.2458032,0.00021108,2]
[331726915,1720703438969,-225.81003448,0.00021108,2]
[331726917,1720703438979,-428.44271624,0.00021108,2]
[331726919,1720703438992,-2573.96000403,0.00021108,2]
[331726921,1720703439002,-164.412679,0.00021174,2]
[331726922,1720703439011,-14373.09017471,0.00021278,2]
[331726981,1720703443783,-3396.37299915,0.00021278,2]
[331726982,1720703443796,-4204.74080584,0.00021278,2]
[331727037,1720703448173,-2925.7960203,0.00021278,2]
[331727038,1720703448184,-500.0,0.00021549,2]
[331727039,1720703448193,-187.808616,0.00021918,2]
[331727040,1720703448203,-2975.6960057,0.00022057,2]
[331727041,1720703448212,-721.71685491,0.00022459,2]
[331727042,1720703448222,-187.808616,0.00022559,2]
[331727043,1720703448232,-164.010171,0.00022834,2]
[331727044,1720703448241,-187.808616,0.000232,2]
[331727045,1720703448251,-187.808616,0.00023841,2]
[331727046,1720703448260,-11438.4034005,0.00024,2]
[331727047,1720703448270,-984.62412913,0.00024008,2]
[331727048,1720703448280,-187.808616,0.00024482,2]
[331727049,1720703448290,-721.71685488,0.00025093,2]
[331727050,1720703448300,-442.67873852,0.00025094,2]
[331727051,1720703448309,-462.53,0.00025184,3]
[331727052,1720703448319,-1167.38474508,0.00025184,3]
[331727064,1720703452384,245.18734288,0.00012,2]
[331727082,1720703710183,8667.66761333,0.00018,4]
[331727083,1720703710207,100000.0,0.00018,4]
[331727090,1720703980268,852.56,0.00010959,2]
[331727092,1720704001248,852.58,0.00010959,2]
[331727094,1720704031315,150.5,0.0001799,62]
[331727095,1720704031784,150.5,0.0001798,62]
[331727096,1720704032251,150.5,0.0001797,62]
[331727108,1720704248455,405.98,0.00010959,2]
[331727110,1720704258980,338.32,0.00010959,2]
[331727114,1720704269524,281.93,0.00010959,2]
[331727115,1720704274192,2178.5234126,0.00017222,2]
[331727116,1720704276279,3000.0,0.00017222,2]
[331727117,1720704280086,234.94,0.00010959,2]
[331727119,1720704288845,1230.27459568,0.00015,2]
[331727120,1720704289581,318.617778,0.00013283,2]
[331727122,1720704290355,191.97796099,0.00010959,10]
[331727123,1720704290514,1274.35220727,0.00013283,2]
[331727124,1720704290846,195.79,0.00010959,2]
[331727127,1720704293299,529.80393287,0.00013283,2]
[331727128,1720704293605,155.13744224,0.00013283,2]
[331727129,1720704293661,548.94163755,0.00013283,2]
[331727130,1720704294053,2120.86866751,0.00013283,2]
[331727131,1720704294867,287.42129962,0.00015,2]
[331727132,1720704294904,155.01728238,0.00013283,2]
[331727133,1720704297198,181.84215111,0.00014,2]
[331727134,1720704297724,354.46681452,0.00013283,2]
[331727135,1720704298895,3139.96498768,0.00013283,2]
[331727136,1720704300705,155.43650455,0.00013283,2]
[331727137,1720704301383,163.16,0.00010959,2]
[331727138,1720704301788,2660.77157843,0.00015,2]
[331727139,1720704301863,492.75452642,0.00013283,2]
[331727140,1720704302229,24900.0,0.00016969,2]
[331727141,1720704303240,12818.30202622,0.00013283,2]
[331727142,1720704303410,1490.60581636,0.00013283,2]
[331727143,1720704303450,662.5058072,0.00013283,2]
[331727144,1720704303488,155.16610741,0.00013283,2]
[331727145,1720704303567,178.19646666,0.00013283,2]
[331727146,1720704303606,179.22707131,0.00013283,2]
[331727147,1720704304298,5504.37614326,0.00013283,2]
[331727148,1720704304527,189.16519588,0.00013283,2]
[331727149,1720704304759,158.13355128,0.00013283,2]
[331727150,1720704305217,3926.28689793,0.00013283,2]
[331727151,1720704305816,3807.81221003,0.00013283,2]
[331727152,1720704306252,155.11378883,0.00015,2]
[331727154,1720704307255,205.87037685,0.00013283,2]
[331727155,1720704307390,13869.06062822,0.00013283,2]
[331727157,1720704311921,815.8,0.00010959,2]
[331727158,1720704314461,777.60346913,0.00013283,2]
[331727159,1720704315684,566.91969589,0.00013283,2]
[331727160,1720704316631,155.07135854,0.00013283,2]
[331727161,1720704320238,725.50158015,0.00013283,2]
[331727162,1720704321959,213.59749831,0.00013283,2]
[331727163,1720704322299,8892.41334539,0.00016255,2]
[331727164,1720704322817,402.60952539,0.00013283,2]
[331727168,1720704331853,287.51223328,0.00015,2]
[331727170,1720704348518,284.50722532,0.00013283,2]
[331727171,1720704349421,182.16068263,0.00013283,2]
[331727172,1720704349507,187.7887475,0.00013283,2]
[331727173,1720704351292,57244.60275606,0.00013283,2]
[331727175,1720704361646,179.97189068,0.00013283,2]
[331727176,1720704361807,492.75452642,0.00013283,2]
[331727177,1720704370810,285.10127519,0.00015,2]
[331727179,1720704377808,4539.30881272,0.00013283,2]
[331727182,1720704385655,162.82680235,0.00016255,2]
[331727183,1720704386428,491.45116219,0.00016255,2]
[331727184,1720704388741,201.03633962,0.00016255,2]
[331727185,1720704394475,205.67604089,0.00016255,2]
[331727188,1720704412734,500.0,0.000137,7]
[331727189,1720704413078,524.1077099,0.00016255,2]
[331727190,1720704413119,500.0,0.000137,7]
[331727191,1720704413635,500.0,0.000137,7]
[331727192,1720704414127,500.0,0.000137,7]
[331727194,1720704415315,247.27691519,0.000137,7]
[331727197,1720704431638,271.9244408,0.00016255,2]
[331727198,1720704431767,268.67850665,0.00016255,7]
[331727201,1720704432406,287.01556155,0.00016255,2]
[331727204,1720704443889,491.05706512,0.000161,2]
[331727207,1720704454007,1147.237088,0.00016967,2]
[331727213,1720704476793,413.32896886,0.00016606,7]
[331727214,1720704480581,524.1077099,0.00016606,2]
[331727221,1720704489922,285.04237374,0.00016606,2]
[331727225,1720704517583,1000.0,0.00012,7]
[331727232,1720704530397,250.0,0.00016964,2]
[331727234,1720704535488,532.50847481,0.00016255,2]
[331727236,1720704539137,610.44931723,0.00016255,2]
[331727237,1720704554140,610.44931723,0.00016255,2]
[331727238,1720704571164,-3759.53272581,0.00017699,2]
[331727239,1720704571187,-203.10183252,0.00017799,2]
[331727240,1720704571210,-2068.28482586,0.00017889,2]
[331727241,1720704571233,-131.29916191,0.00017889,2]
[331727242,1720704574856,-121.14262629,0.00017889,2]
[331727243,1720704574890,-466.70919201,0.00017889,2]
[331727244,1720704574925,-201.35311716,0.00017899,2]
[331727245,1720704574965,-98.64688284,0.00017899,2]
[331727246,1720704574998,-300.0,0.00017899,2]
[331727247,1720704575031,-390.55805262,0.000179,2]
[331727248,1720704575076,-432.97921403,0.000179,2]
[331727249,1720704576970,1586.5510384,0.0001697,2]
[331727254,1720704599896,-829.43271716,0.000179,2]
[331727255,1720704599952,-829.43271716,0.000179,2]
[331727256,1720704600008,-744.2829303,0.000179,2]
[331727297,1720704631737,-300.0,0.00017899,2]
[331727298,1720704631747,-300.0,0.00017899,2]
[331727299,1720704631757,-2892.01210966,0.000179,2]
[331727301,1720704631769,-1301.0,0.000179,2]
[331727303,1720704631784,-2833.656,0.000179,2]
[331727356,1720704638050,-12635.93519652,0.000179,2]
[331727357,1720704638060,-500.0,0.00017989,2]
[331727358,1720704638070,-500.0,0.00017989,2]
[331727359,1720704638080,-500.0,0.00017989,2]
[331727361,1720704638090,-500.0,0.00017989,2]
[331727363,1720704638101,-500.0,0.00017989,2]
[331727365,1720704638111,-500.0,0.00017989,2]
[331727367,1720704638122,-500.0,0.00017989,2]
[331727369,1720704638132,-500.0,0.00017989,2]
[331727371,1720704638142,-307.40213888,0.00017989,2]
[331727372,1720704638152,-500.0,0.00017989,2]
[331727374,1720704638161,-500.0,0.00017989,2]
[331727376,1720704638172,-500.0,0.00017989,2]
[331727377,1720704638181,-500.0,0.00017989,2]
[331727378,1720704638191,-500.0,0.00017989,2]
[331727379,1720704638202,-500.0,0.00017989,2]
[331727380,1720704638212,-500.0,0.00017989,2]
[331727382,1720704638222,-186.88593949,0.00017989,2]
[331727384,1720704638232,-500.0,0.00017989,2]
[331727385,1720704638242,-578.79981732,0.00017989,2]
[331727386,1720704638255,-500.0,0.00017989,2]
[331727387,1720704638266,-500.0,0.00017989,2]
[331727388,1720704638279,-500.0,0.00017989,2]
[331727389,1720704638291,-637.16652289,0.00017989,2]
[331727390,1720704638303,-500.0,0.00017989,2]
[331727391,1720704638313,-500.0,0.00017989,2]
[331727392,1720704638323,-500.0,0.00017989,2]
[331727393,1720704638451,-500.0,0.00017989,2]
[331727394,1720704638467,-500.0,0.00017989,2]
[331727395,1720704638478,-483.3024516,0.00017989,2]
[331727396,1720704638487,-308.32017406,0.00017989,2]
[331727397,1720704638498,-500.0,0.00017989,2]
[331727398,1720704638509,-500.0,0.00017989,2]
[331727399,1720704638519,-160.96179591,0.00017989,2]
[331727400,1720704638531,-500.0,0.00017989,2]
[331727401,1720704638542,-500.0,0.00017989,2]
[331727402,1720704638553,-500.0,0.00017989,2]
[331727403,1720704638564,-500.0,0.00017989,2]
[331727404,1720704638575,-500.0,0.00017989,2]
[331727405,1720704638587,-500.0,0.00017989,2]
[331727406,1720704638597,-500.0,0.00017989,2]
[331727407,1720704638607,-500.0,0.00017989,2]
[331727408,1720704638618,-500.0,0.00017989,2]
[331727409,1720704638628,-500.0,0.00017989,2]
[331727410,1720704638638,-500.0,0.00017989,2]
[331727411,1720704638648,-500.0,0.00017989,2]
[331727412,1720704638659,-500.0,0.00017989,2]
[331727413,1720704638669,-500.0,0.00017989,2]
[331727414,1720704638679,-336.5416084,0.00017989,2]
[331727415,1720704638691,-500.0,0.00017989,2]
[331727416,1720704638702,-500.0,0.00017989,2]
[331727417,1720704638714,-500.0,0.00017989,2]
[331727418,1720704638726,-500.0,0.00017989,2]
[331727419,1720704638737,-276.44773999,0.00017989,2]
[331727420,1720704638747,-500.0,0.00017989,2]
[331727421,1720704638758,-500.0,0.00017989,2]
[331727422,1720704638768,-500.0,0.00017989,2]
[331727423,1720704638780,-500.0,0.00017989,2]
[331727424,1720704638790,-500.0,0.00017989,2]
[331727425,1720704638799,-236.15738325,0.00017989,2]
[331727426,1720704638810,-500.0,0.00017989,2]
[331727427,1720704638820,-500.0,0.00017989,2]
[331727428,1720704638830,-500.0,0.00017989,2]
[331727429,1720704638839,-500.0,0.00017989,2]
[331727430,1720704638850,-500.0,0.00017989,2]
[331727431,1720704638859,-500.0,0.00017989,2]
[331727432,1720704638870,-500.0,0.00017989,2]
[331727433,1720704638880,-500.0,0.00017989,2]
[331727434,1720704638891,-183.12329456,0.00017989,2]
[331727435,1720704638900,-500.0,0.00017989,2]
[331727436,1720704638910,-500.0,0.00017989,2]
[331727437,1720704638919,-500.0,0.00017989,2]
[331727438,1720704638929,-500.0,0.00017989,2]
[331727439,1720704638938,-500.0,0.00017989,2]
[331727440,1720704638948,-500.0,0.00017989,2]
[331727441,1720704638958,-500.0,0.00017989,2]
[331727442,1720704638967,-282.66587103,0.00017989,2]
[331727443,1720704638977,-500.0,0.00017989,2]
[331727444,1720704638987,-478673.541655,0.0001799,2]
[331727445,1720704638996,-191332.33238667,0.00018,4]
[331727446,1720704639007,-191.20491413,0.00018,2]
[331727447,1720704639017,-154.87782908,0.00018,2]
[331727448,1720704639029,-22889.28893744,0.00018845,2]
[331727449,1720704639038,-4523.44188966,0.00018899,2]
[331727450,1720704639047,-7179.44413176,0.000189,2]
[331727451,1720704639057,-813.55178748,0.00019,3]
[331727452,1720704639067,-197.33907868,0.00019,2]
[331727453,1720704639077,-250.0,0.00019041,2]
[331727454,1720704639087,-312.24496095,0.00019165,2]
[331727455,1720704639096,-420.0,0.00019532,2]
[331727456,1720704639106,-420.0,0.00019689,2]
[331727457,1720704639115,-22889.28893744,0.00019791,2]
[331727458,1720704639125,-159557.847218,0.00019947,2]
[331727459,1720704639135,-225.81003448,0.0002,2]
[331727460,1720704639146,-569.0048928,0.0002,2]
[331727461,1720704639156,-435.0,0.0002,2]
[331727462,1720704639168,-154.71595376,0.0002,2]
[331727463,1720704639180,-154.69833824,0.0002,2]
[331727464,1720704639191,-532.50847481,0.00020562,2]
[331727465,1720704639202,-574.24735706,0.00020562,2]
[331727466,1720704639212,-22889.28893744,0.00020736,2]
[331727467,1720704639222,-750.0,0.00021096,2]
[331727468,1720704639232,-2068.2848258,0.00021176,2]
[331727469,1720704639242,-620.06550032,0.0002121,2]
[331727470,1720704639254,-632.5605058,0.0002121,2]
[331727471,1720704639267,-587.0,0.00021314,2]
[331727472,1720704639279,-587.0,0.00021658,2]
[331727474,1720704639289,-22889.28893744,0.00021681,2]
[331727476,1720704639299,-909.85449298,0.00021781,2]
[331727478,1720704639310,-201486.92989133,0.00021781,2]
[331727479,1720704639321,-155.1752081,0.00021781,2]
[331727480,1720704639331,-6867.50856423,0.00021781,2]
[331727481,1720704639340,-493.9878288,0.00021781,2]
[331727482,1720704639353,-511.45528579,0.00021818,2]
[331727483,1720704639363,-1065.99282123,0.00021917,2]
[331727484,1720704639372,-166.666666,0.00021918,2]
[331727485,1720704639383,-620.00327502,0.00022271,2]
[331727486,1720704639392,-620.62802529,0.00022271,2]
[331727487,1720704639402,-880.43468387,0.00022278,2]
[331727488,1720704639412,-166.666666,0.00022431,2]
[331727489,1720704639422,-166.666666,0.00022944,2]
[331727490,1720704639432,-1980.53584489,0.00023,2]
[331727491,1720704639441,-200.0,0.00023,2]
[331727492,1720704639450,-154.261413,0.00023201,7]
[331727493,1720704639459,-4972.10598518,0.00023218,2]
[331727495,1720704639469,-151.0,0.00023239,7]
[331727497,1720704639478,-1773.062594,0.00023239,7]
[331727498,1720704639488,-1773.062594,0.00023239,7]
[331727500,1720704639499,-151.0,0.00023239,7]
[331727501,1720704639510,-823.0,0.00023258,2]
[331727502,1720704639520,-620.00016375,0.00023384,2]
[331727503,1720704639532,-620.03140126,0.00023384,2]
[331727504,1720704639541,-166.666666,0.00023456,2]
[331727505,1720704639551,-4972.10598518,0.00023559,2]
[331727506,1720704639561,-4972.10598518,0.00023676,2]
[331727507,1720704639571,-823.0,0.00023824,2]
[331727508,1720704639581,-7179.44413176,0.000239,2]
[331727509,1720704639591,-151.0,0.00023968,7]
[331727510,1720704639603,-1773.062594,0.00023968,7]
[331727511,1720704639613,-1773.062594,0.00023968,7]
[331727512,1720704639624,-151.0,0.00023968,7]
[331727514,1720704639634,-166.666666,0.00023969,2]
[331727516,1720704639645,-640.97330872,0.00024,2]
[331727517,1720704639655,-4972.10598518,0.00024047,2]
[331727519,1720704639667,-362.37139851,0.00024107,2]
[331727520,1720704639694,-4972.10598518,0.00024149,2]
[331727521,1720704639719,-362.37139851,0.00024354,2]
[331727522,1720704639744,-151.0,0.00024413,7]
[331727524,1720704639769,-4972.10598518,0.00024415,2]
[331727526,1720704639811,-362.37139851,0.00024454,2]
[331727528,1720704639850,-2068.2848258,0.00024464,2]
[331727530,1720704639863,-100000.0,0.00024481,2]
[331727532,1720704639875,-155.45465387,0.00024481,2]
[331727534,1720704639887,-166.666666,0.00024482,2]
[331727535,1720704639900,-620.00000819,0.00024553,2]
[331727536,1720704639914,-620.00157006,0.00024553,2]
[331727537,1720704639927,-380.0,0.00024658,2]
[331727538,1720704639941,-500.0,0.00024658,2]
[331727539,1720704639953,-500.0,0.00024658,2]
[331727540,1720704639965,-500.0,0.00024658,2]
[331727541,1720704639976,-500.0,0.00024658,2]
[331727542,1720704639988,-423.75575488,0.00024658,2]
[331727543,1720704640002,-500.0,0.00024658,2]
[331727544,1720704640016,-500.0,0.00024658,2]
[331727545,1720704640028,-500.0,0.00024658,2]
[331727546,1720704640039,-263.8017939,0.00024658,2]
[331727547,1720704640050,-500.0,0.00024658,2]
[331727548,1720704640061,-500.0,0.00024658,2]
[331727549,1720704640072,-500.0,0.00024658,2]
[331727550,1720704640085,-500.0,0.00024658,2]
[331727551,1720704640097,-500.0,0.00024658,2]
[331727552,1720704640110,-362.37139851,0.00024819,2]
[331727553,1720704640122,-4972.10598523,0.00024837,2]
[331727554,1720704640134,-150.0,0.00024882,2]
[331727555,1720704640146,-302.42545213,0.000249,2]
[331727556,1720704640158,-155.87792032,0.000249,2]
[331727557,1720704640169,-200.0,0.00025078,2]
[331727558,1720704640181,-151.0,0.00025104,7]
[331727559,1720704640192,-302.42545209,0.00025149,2]
[331727560,1720704640203,-499.99255164,0.00025177,2]
[331727561,1720704640214,-499.99255164,0.00025177,2]
[331727562,1720704640225,-151.0,0.00025194,7]
[331727563,1720704640236,-151.0,0.00025194,7]
[331727564,1720704640248,-1773.062594,0.00025194,7]
[331727565,1720704640263,-1773.062594,0.00025194,7]
[331727566,1720704640273,-30000.0,0.00025204,2]
[331727567,1720704640286,-52150.85185038,0.00025204,2]
[331727568,1720704640298,-151.0,0.00025204,7]
[331727569,1720704640309,-1152.0,0.0002538,2]
[331727570,1720704640322,-1147.237088,0.0002545,2]
[331727571,1720704640334,-195363.42018957,0.000255,2]
[331727572,1720704640345,-620.00000041,0.00025781,2]
[331727573,1720704640356,-620.0000785,0.00025781,2]
[331727574,1720704640367,-209.31817584,0.00025902,2]
[331727575,1720704640377,-1152.0,0.00026206,2]
[331727576,1720704640388,-400.0,0.00026448,2]
[331727577,1720704640398,-150.0,0.000265,2]
[331727578,1720704640408,-306.89640825,0.00026574,2]
[331727579,1720704640418,-151.0,0.00026849,7]
[331727580,1720704640429,-151.160005,0.00026849,7]
[331727581,1720704640441,-620.00000002,0.0002707,2]
[331727582,1720704640452,-620.00000393,0.0002707,2]
[331727583,1720704640463,-155.04373045,0.00027184,2]
[331727584,1720704640475,-222.66171746,0.00027194,2]
[331727585,1720704640485,-750.0,0.00027195,2]
[331727586,1720704640496,-500.0,0.00027397,7]
[331727587,1720704640507,-515.26768314,0.00027397,7]
[331727588,1720704640518,-500.0,0.00027397,7]
[331727589,1720704640531,-632.29556562,0.00027397,7]
[331727590,1720704640541,-500.0,0.00027397,7]
[331727591,1720704640551,-511.01571177,0.00027397,7]
[331727592,1720704640563,-500.0,0.00027397,7]
[331727593,1720704640575,-500.0,0.00027397,7]
[331727594,1720704640586,-500.0,0.00027397,7]
[331727595,1720704640598,-564.02,0.00027397,7]
[331727596,1720704640610,-500.0,0.00027397,7]
[331727597,1720704640621,-500.0,0.00027397,7]
[331727598,1720704640633,-500.0,0.00027397,7]
[331727599,1720704640647,-500.0,0.00027397,7]
[331727600,1720704640659,-500.0,0.00027397,2]
[331727601,1720704640670,-503.58255602,0.00027397,2]
[331727602,1720704640679,-500.0,0.00027397,7]
[331727603,1720704640689,-500.0,0.00027397,2]
[331727604,1720704640702,-500.0,0.00027397,7]
[331727605,1720704640713,-500.0,0.00027397,7]
[331727606,1720704640724,-500.0,0.00027397,7]
[331727607,1720704640734,-530.89089341,0.00027397,7]
[331727608,1720704640744,-500.0,0.00027397,2]
[331727609,1720704640754,-500.0,0.00027397,7]
[331727610,1720704640766,-500.0,0.00027397,7]
[331727611,1720704640777,-500.0,0.00027397,7]
[331727612,1720704640789,-500.0,0.00027397,7]
[331727613,1720704640800,-500.0,0.00027397,7]
[331727614,1720704640811,-540.5,0.00027397,7]
[331727615,1720704640823,-500.0,0.00027397,7]
[331727616,1720704640834,-500.0,0.00027397,7]
[331727617,1720704640845,-878.8,0.00027397,2]
[331727618,1720704640854,-151.0,0.00027397,7]
[331727619,1720704640866,-151.0,0.00027397,7]
[331727620,1720704640879,-151.0,0.00027397,7]
[331727621,1720704640890,-151.0,0.00027397,7]
[331727622,1720704640901,-151.0,0.00027397,7]
[331727623,1720704640915,-272.193846,0.00027397,7]
[331727624,1720704640926,-154.69833824,0.00027399,2]
[331727625,1720704640938,-500.0,0.00027671,7]
[331727626,1720704640950,-878.8,0.00027671,2]
[331727627,1720704640962,-323.0,0.00027695,2]
[331727628,1720704640974,-2068.2848258,0.00027751,2]
[331727629,1720704640986,-500.0,0.00027945,7]
[331727630,1720704640997,-878.8,0.00027945,2]
[331727631,1720704641008,-155.89961908,0.00027999,2]
[331727632,1720704641019,-302.86569861,0.00027999,2]
[331727633,1720704641032,-1010.16871954,0.00028,2]
[331727634,1720704641043,-2000.0,0.00028,2]
[331727635,1720704641056,-500.0,0.00028219,7]
[331727636,1720704641067,-878.8,0.00028219,2]
[331727637,1720704641078,-600.0,0.00028225,2]
[331727638,1720704641089,-620.0000002,0.00028423,2]
[331727639,1720704641101,-507.23839576,0.00028493,7]
[331727640,1720704641112,-878.8,0.00028493,2]
[331727641,1720704641124,-878.8,0.00028767,2]
[331727642,1720704641136,-1613.0,0.00028827,2]
[331727643,1720704641148,-310.81016817,0.0002885,2]
[331727644,1720704641161,-7179.44413176,0.000289,2]
[331727645,1720704641172,-1406.0,0.00029018,2]
[331727646,1720704641184,-878.8,0.00029041,2]
[331727647,1720704641195,-878.8,0.00029315,2]
[331727648,1720704641207,-878.8,0.00029589,2]
[331727649,1720704641216,-151.0,0.00029768,7]
[331727650,1720704641332,-175.44308885,0.00029772,2]
[331727651,1720704641343,-154.69833824,0.00029772,2]
[331727652,1720704641354,-154.69833824,0.00029772,4]
[331727653,1720704641365,-283.48270326,0.00029772,2]
[331727654,1720704641377,-150.0,0.00029779,2]
[331727655,1720704641388,-503.0,0.00029779,2]
[331727656,1720704641398,-151.0,0.00029779,7]
[331727657,1720704641408,-1773.062594,0.00029779,7]
[331727658,1720704641417,-1773.062594,0.00029779,7]
[331727659,1720704641426,-283.48270326,0.00029793,2]
[331727660,1720704641436,-229.23922118,0.00029793,2]
[331727661,1720704641445,-229.23922118,0.00029803,2]
[331727662,1720704641455,-158.29964009,0.00029803,2]
[331727663,1720704641465,-293.58203646,0.00029803,2]
[331727664,1720704641474,-268.70466552,0.00029813,2]
[331727665,1720704641484,-165.23165192,0.00029813,2]
[331727666,1720704641494,-154.69833824,0.00029823,2]
[331727667,1720704641503,-620.00000001,0.00029845,2]
[331727668,1720704641513,-154.69833824,0.00029861,2]
[331727669,1720704641522,-878.8,0.00029863,2]
[331727670,1720704641533,-154.83874556,0.00029879,2]
[331727671,1720704641542,-154.69833824,0.00029879,2]
[331727672,1720704641551,-160.11041109,0.00029901,2]
[331727673,1720704641561,-182.77484663,0.00029903,2]
[331727674,1720704641570,-264.81433793,0.00029903,2]
[331727676,1720704641579,-208.81908142,0.00029904,2]
[331727677,1720704641588,-643.7802781,0.0003,4]
[331727678,1720704641598,-500.0,0.0003,2]
[331727680,1720704641607,-471.75108286,0.0003,4]
[331727682,1720704641617,-1144.72262457,0.0003,4]
[331727683,1720704641625,-2000.0,0.0003,5]
[331727684,1720704641635,-154.69833824,0.0003,4]
[331727685,1720704641644,-344.0,0.0003,2]
[331727686,1720704641653,-151.883,0.00030026,2]
[331727687,1720704641662,-211.742,0.00030026,2]
[331727688,1720704641671,-235.629,0.00030026,2]
[331727689,1720704641681,-878.8,0.00030136,2]
[331727690,1720704641691,-878.8,0.0003041,2]
[331727691,1720704641701,-878.8,0.00030684,2]
[331727692,1720704641710,-878.8,0.00030958,2]
[331727693,1720704641720,-2500.00377349,0.00031,4]
[331727694,1720704641730,-500.0,0.00031,2]
[331727695,1720704641740,-2068.2848258,0.00031038,2]
[331727696,1720704641750,-878.8,0.00031232,2]
[331727697,1720704641759,-620.0,0.00031337,2]
[331727698,1720704641769,-878.8,0.00031506,2]
[331727699,1720704641780,-2258.0,0.00031709,2]